{"text_format":"1","workbook":"xlsx","n_sheets":2,"sheets":["Worksheet","SYSTEM FORMULAE"],"not_rendered":{"charts":0,"images":0,"macros":1,"external_links":0,"defined_names":2,"comments":0,"pivot_tables":0},"unopened":[],"bounds":{"document_bytes":16777216,"sheet_cells":100000,"rows_first":2000,"rows_last":500,"rows_between":2000,"halvings":0,"cell_chars":16384,"cell_head_chars":4096},"cells_cut":0,"cells_raw":0,"read":"whole","date_system":"1900"}

{"sheet":"Worksheet","index":0,"n_rows":31,"n_cols":19,"rows_kept":31,"cut":false,"hidden":false,"merged":[[8,0,8,1],[0,2,0,18],[2,0,2,1],[4,0,4,1]]}
[null,null,"Round these numbers to the specified number of significant figures"]
[null,null,1,"Round","4558·16","to",2,"significant figures","4558·16",4600,null,31,"Round","3500·3194","to",1,"significant figure","3500·3",4000]
["Variables",null,2,"Round","6879·3","to",1,"significant figure","6879·3",7000,null,32,"Round","407·0872","to",2,"significant figures","407·09",410]
["SHOW ANSWERS",false,3,"Round","480·4","to",2,"significant figures","480·4",480,null,33,"Round","10905·4","to",3,"significant figures","10905·4",10900]
["Number to round",null,4,"Round","8570·77148","to",1,"significant figure","8570·8",9000,null,34,"Round","820·4987","to",1,"significant figure","820·5",800]
["Maximum digits of integer part",4,5,"Round","51·23331","to",2,"significant figures","51·23",51,null,35,"Round","2760·5","to",1,"significant figure","2760·5",3000]
["Maximum decimal places",5,6,"Round","103·9038","to",1,"significant figure","103·9",100,null,36,"Round","62·3624","to",1,"significant figure","62·4",60]
["Approximate percentage of numbers less than 1",20,7,"Round","5140·306","to",2,"significant figures","5140·31",5100,null,37,"Round","75·96","to",3,"significant figures","75·96",76]
["Rounding requirements",null,8,"Round","800·36","to",2,"significant figures","800·36",800,null,38,"Round","4580·42","to",2,"significant figures","4580·42",4600]
["Maximum number of significant figures to round to",3,9,"Round","297·276","to",2,"significant figures","297·28",300,null,39,"Round","8069·55702","to",2,"significant figures","8069·56",8100]
[null,null,10,"Round","476·44114","to",3,"significant figures","476·441",476,null,40,"Round","1061·34","to",3,"significant figures","1061·34",1060]
[null,null,11,"Round","98·989","to",1,"significant figure",99,100,null,41,"Round","22·59172","to",1,"significant figure","22·6",20]
[null,null,12,"Round","17·661","to",1,"significant figure","17·7",20,null,42,"Round","356·88","to",1,"significant figure","356·9",400]
[null,null,13,"Round","0·59321","to",3,"significant figures","0·593","0·593",null,43,"Round","3908·5","to",3,"significant figures","3908·5",3910]
[null,null,14,"Round","4764·32","to",1,"significant figure","4764·3",5000,null,44,"Round","84·918","to",3,"significant figures","84·918","84·9"]
[null,null,15,"Round","10000·8","to",2,"significant figures","10000·8",10000,null,45,"Round","31·51","to",3,"significant figures","31·51","31·5"]
[null,null,16,"Round","8353·6","to",2,"significant figures","8353·6",8400,null,46,"Round","6652·4","to",2,"significant figures","6652·4",6700]
[null,null,17,"Round","552·2287","to",2,"significant figures","552·23",550,null,47,"Round","9800·8","to",1,"significant figure","9800·8",10000]
[null,null,18,"Round","62·0135","to",2,"significant figures","62·01",62,null,48,"Round","9712·7","to",2,"significant figures","9712·7",9700]
[null,null,19,"Round","2484·99277","to",3,"significant figures","2484·993",2480,null,49,"Round","891·75","to",2,"significant figures","891·75",890]
[null,null,20,"Round","771·36","to",2,"significant figures","771·36",770,null,50,"Round","8575·148","to",1,"significant figure","8575·1",9000]
[null,null,21,"Round","328·78","to",1,"significant figure","328·8",300,null,51,"Round","79·96472","to",1,"significant figure",80,80]
[null,null,22,"Round","71·2556","to",1,"significant figure","71·3",70,null,52,"Round","979·61","to",2,"significant figures","979·61",980]
[null,null,23,"Round","128·547","to",1,"significant figure","128·5",100,null,53,"Round","33·082","to",3,"significant figures","33·082","33·1"]
[null,null,24,"Round","12·9096","to",1,"significant figure","12·9",10,null,54,"Round","415·12851","to",1,"significant figure","415·1",400]
[null,null,25,"Round","0·12841","to",3,"significant figures","0·128","0·128",null,55,"Round","38·8707","to",3,"significant figures","38·871","38·9"]
[null,null,26,"Round","34·112","to",2,"significant figures","34·11",34,null,56,"Round","344·35","to",2,"significant figures","344·35",340]
[null,null,27,"Round","95·235","to",2,"significant figures","95·24",95,null,57,"Round","6239·331","to",1,"significant figure","6239·3",6000]
[null,null,28,"Round","1483·3","to",3,"significant figures","1483·3",1480,null,58,"Round","188·299","to",2,"significant figures","188·3",190]
[null,null,29,"Round","75·5672","to",2,"significant figures","75·57",76,null,59,"Round","7·4911","to",3,"significant figures","7·491","7·49"]
[null,null,30,"Round","2171·1","to",2,"significant figures","2171·1",2200,null,60,"Round","168·992","to",2,"significant figures","168·99",170]

{"sheet":"SYSTEM FORMULAE","index":1,"n_rows":33,"n_cols":20,"rows_kept":33,"cut":false,"hidden":false,"merged":[]}
[]
[]
[]
[1,"Round",{"$f":"IF(RAND()<Worksheet!$B$8/100,0,RANDBETWEEN(1,10^RANDBETWEEN(1,Worksheet!$B$6)))+RANDBETWEEN(1,10^Worksheet!$B$7)/(10^RANDBETWEEN(1,Worksheet!$B$7))","v":13.163399999999999},"to",{"$f":"RANDBETWEEN(1,MIN(Worksheet!$B$7,Worksheet!$B$10))","v":1},{"$f":"IF(E4=1,\"significant figure\",\"significant figures\")","v":"significant figure"},{"$f":"ROUND(C4,E4)","v":13.2},{"$f":"ROUND(C4,E4-1-INT(LOG10(ABS(C4))))","v":10},null,31,"Round",{"$f":"IF(RAND()<Worksheet!$B$8/100,0,RANDBETWEEN(1,10^RANDBETWEEN(1,Worksheet!$B$6)))+RANDBETWEEN(1,10^Worksheet!$B$7)/(10^RANDBETWEEN(1,Worksheet!$B$7))","v":4648.2},"to",{"$f":"RANDBETWEEN(1,MIN(Worksheet!$B$7,Worksheet!$B$10))","v":1},{"$f":"IF(N4=1,\"significant figure\",\"significant figures\")","v":"significant figure"},{"$f":"ROUND(L4,N4)","v":4648.2},{"$f":"ROUND(L4,N4-1-INT(LOG10(ABS(L4))))","v":5000},null,{"$f":"RANDBETWEEN(RANDBETWEEN(0,Worksheet!$B$7),Worksheet!$B$7)","v":5},{"$f":"RANDBETWEEN(RANDBETWEEN(0,Worksheet!$B$7),Worksheet!$B$7)","v":5}]
[2,"Round",{"$f":"IF(RAND()<Worksheet!$B$8/100,0,RANDBETWEEN(1,10^RANDBETWEEN(1,Worksheet!$B$6)))+RANDBETWEEN(1,10^Worksheet!$B$7)/(10^RANDBETWEEN(1,Worksheet!$B$7))","v":4437.3},"to",{"$f":"RANDBETWEEN(1,MIN(Worksheet!$B$7,Worksheet!$B$10))","v":3},"significant figures",{"$f":"ROUND(C5,E5)","v":4437.3},{"$f":"ROUND(C5,E5-1-INT(LOG10(ABS(C5))))","v":4440},null,32,"Round",{"$f":"IF(RAND()<Worksheet!$B$8/100,0,RANDBETWEEN(1,10^RANDBETWEEN(1,Worksheet!$B$6)))+RANDBETWEEN(1,10^Worksheet!$B$7)/(10^RANDBETWEEN(1,Worksheet!$B$7))","v":23.277699999999999},"to",{"$f":"RANDBETWEEN(1,MIN(Worksheet!$B$7,Worksheet!$B$10))","v":2},"significant figures",{"$f":"ROUND(L5,N5)","v":23.28},{"$f":"ROUND(L5,N5-1-INT(LOG10(ABS(L5))))","v":23},null,{"$f":"RANDBETWEEN(RANDBETWEEN(0,Worksheet!$B$7),Worksheet!$B$7)","v":4},{"$f":"RANDBETWEEN(RANDBETWEEN(0,Worksheet!$B$7),Worksheet!$B$7)","v":5}]
[3,"Round",{"$f":"IF(RAND()<Worksheet!$B$8/100,0,RANDBETWEEN(1,10^RANDBETWEEN(1,Worksheet!$B$6)))+RANDBETWEEN(1,10^Worksheet!$B$7)/(10^RANDBETWEEN(1,Worksheet!$B$7))","v":16.880099999999999},"to",{"$f":"RANDBETWEEN(1,MIN(Worksheet!$B$7,Worksheet!$B$10))","v":2},"significant figures",16.88,17,null,33,"Round",{"$f":"IF(RAND()<Worksheet!$B$8/100,0,RANDBETWEEN(1,10^RANDBETWEEN(1,Worksheet!$B$6)))+RANDBETWEEN(1,10^Worksheet!$B$7)/(10^RANDBETWEEN(1,Worksheet!$B$7))","v":964.46199999999999},"to",{"$f":"RANDBETWEEN(1,MIN(Worksheet!$B$7,Worksheet!$B$10))","v":3},"significant figures",964.46199999999999,964,null,{"$f":"RANDBETWEEN(RANDBETWEEN(0,Worksheet!$B$7),Worksheet!$B$7)","v":5},{"$f":"RANDBETWEEN(RANDBETWEEN(0,Worksheet!$B$7),Worksheet!$B$7)","v":2}]
[4,"Round",{"$f":"IF(RAND()<Worksheet!$B$8/100,0,RANDBETWEEN(1,10^RANDBETWEEN(1,Worksheet!$B$6)))+RANDBETWEEN(1,10^Worksheet!$B$7)/(10^RANDBETWEEN(1,Worksheet!$B$7))","v":9636.2999999999993},"to",{"$f":"RANDBETWEEN(1,MIN(Worksheet!$B$7,Worksheet!$B$10))","v":3},"significant figures",9636.2999999999993,{"$f":"ROUND(C7,E7-1-INT(LOG10(ABS(C7))))","v":9640},null,34,"Round",{"$f":"IF(RAND()<Worksheet!$B$8/100,0,RANDBETWEEN(1,10^RANDBETWEEN(1,Worksheet!$B$6)))+RANDBETWEEN(1,10^Worksheet!$B$7)/(10^RANDBETWEEN(1,Worksheet!$B$7))","v":945.45},"to",{"$f":"RANDBETWEEN(1,MIN(Worksheet!$B$7,Worksheet!$B$10))","v":1},"significant figure",945.5,900,null,{"$f":"RANDBETWEEN(RANDBETWEEN(0,Worksheet!$B$7),Worksheet!$B$7)","v":4},{"$f":"RANDBETWEEN(RANDBETWEEN(0,Worksheet!$B$7),Worksheet!$B$7)","v":4}]
[5,"Round",{"$f":"IF(RAND()<Worksheet!$B$8/100,0,RANDBETWEEN(1,10^RANDBETWEEN(1,Worksheet!$B$6)))+RANDBETWEEN(1,10^Worksheet!$B$7)/(10^RANDBETWEEN(1,Worksheet!$B$7))","v":72.325400000000002},"to",{"$f":"RANDBETWEEN(1,MIN(Worksheet!$B$7,Worksheet!$B$10))","v":1},"significant figure",72.3,70,null,35,"Round",{"$f":"IF(RAND()<Worksheet!$B$8/100,0,RANDBETWEEN(1,10^RANDBETWEEN(1,Worksheet!$B$6)))+RANDBETWEEN(1,10^Worksheet!$B$7)/(10^RANDBETWEEN(1,Worksheet!$B$7))","v":22.042099999999998},"to",{"$f":"RANDBETWEEN(1,MIN(Worksheet!$B$7,Worksheet!$B$10))","v":2},"significant figures",22.04,22,null,{"$f":"RANDBETWEEN(RANDBETWEEN(0,Worksheet!$B$7),Worksheet!$B$7)","v":5},{"$f":"RANDBETWEEN(RANDBETWEEN(0,Worksheet!$B$7),Worksheet!$B$7)","v":5}]
[6,"Round",{"$f":"IF(RAND()<Worksheet!$B$8/100,0,RANDBETWEEN(1,10^RANDBETWEEN(1,Worksheet!$B$6)))+RANDBETWEEN(1,10^Worksheet!$B$7)/(10^RANDBETWEEN(1,Worksheet!$B$7))","v":4981.8999999999996},"to",{"$f":"RANDBETWEEN(1,MIN(Worksheet!$B$7,Worksheet!$B$10))","v":2},"significant figures",4981.8999999999996,5000,null,36,"Round",{"$f":"IF(RAND()<Worksheet!$B$8/100,0,RANDBETWEEN(1,10^RANDBETWEEN(1,Worksheet!$B$6)))+RANDBETWEEN(1,10^Worksheet!$B$7)/(10^RANDBETWEEN(1,Worksheet!$B$7))","v":5432},"to",{"$f":"RANDBETWEEN(1,MIN(Worksheet!$B$7,Worksheet!$B$10))","v":1},"significant figure",5432,5000,null,{"$f":"RANDBETWEEN(RANDBETWEEN(0,Worksheet!$B$7),Worksheet!$B$7)","v":3},{"$f":"RANDBETWEEN(RANDBETWEEN(0,Worksheet!$B$7),Worksheet!$B$7)","v":3}]
[7,"Round",{"$f":"IF(RAND()<Worksheet!$B$8/100,0,RANDBETWEEN(1,10^RANDBETWEEN(1,Worksheet!$B$6)))+RANDBETWEEN(1,10^Worksheet!$B$7)/(10^RANDBETWEEN(1,Worksheet!$B$7))","v":0.94886000000000004},"to",{"$f":"RANDBETWEEN(1,MIN(Worksheet!$B$7,Worksheet!$B$10))","v":2},"significant figures",0.95,0.95,null,37,"Round",{"$f":"IF(RAND()<Worksheet!$B$8/100,0,RANDBETWEEN(1,10^RANDBETWEEN(1,Worksheet!$B$6)))+RANDBETWEEN(1,10^Worksheet!$B$7)/(10^RANDBETWEEN(1,Worksheet!$B$7))","v":2.9933000000000001},"to",{"$f":"RANDBETWEEN(1,MIN(Worksheet!$B$7,Worksheet!$B$10))","v":3},"significant figures",2.9929999999999999,2.99,null,{"$f":"RANDBETWEEN(RANDBETWEEN(0,Worksheet!$B$7),Worksheet!$B$7)","v":5},{"$f":"RANDBETWEEN(RANDBETWEEN(0,Worksheet!$B$7),Worksheet!$B$7)","v":5}]
[8,"Round",{"$f":"IF(RAND()<Worksheet!$B$8/100,0,RANDBETWEEN(1,10^RANDBETWEEN(1,Worksheet!$B$6)))+RANDBETWEEN(1,10^Worksheet!$B$7)/(10^RANDBETWEEN(1,Worksheet!$B$7))","v":3258.9},"to",{"$f":"RANDBETWEEN(1,MIN(Worksheet!$B$7,Worksheet!$B$10))","v":3},"significant figures",3258.9,3260,null,38,"Round",{"$f":"IF(RAND()<Worksheet!$B$8/100,0,RANDBETWEEN(1,10^RANDBETWEEN(1,Worksheet!$B$6)))+RANDBETWEEN(1,10^Worksheet!$B$7)/(10^RANDBETWEEN(1,Worksheet!$B$7))","v":1035.51},"to",{"$f":"RANDBETWEEN(1,MIN(Worksheet!$B$7,Worksheet!$B$10))","v":1},"significant figure",1035.5,1000,null,{"$f":"RANDBETWEEN(RANDBETWEEN(0,Worksheet!$B$7),Worksheet!$B$7)","v":2},{"$f":"RANDBETWEEN(RANDBETWEEN(0,Worksheet!$B$7),Worksheet!$B$7)","v":3}]
[9,"Round",{"$f":"IF(RAND()<Worksheet!$B$8/100,0,RANDBETWEEN(1,10^RANDBETWEEN(1,Worksheet!$B$6)))+RANDBETWEEN(1,10^Worksheet!$B$7)/(10^RANDBETWEEN(1,Worksheet!$B$7))","v":7778.5},"to",{"$f":"RANDBETWEEN(1,MIN(Worksheet!$B$7,Worksheet!$B$10))","v":3},"significant figures",7778.5,7780,null,39,"Round",{"$f":"IF(RAND()<Worksheet!$B$8/100,0,RANDBETWEEN(1,10^RANDBETWEEN(1,Worksheet!$B$6)))+RANDBETWEEN(1,10^Worksheet!$B$7)/(10^RANDBETWEEN(1,Worksheet!$B$7))","v":142.196},"to",{"$f":"RANDBETWEEN(1,MIN(Worksheet!$B$7,Worksheet!$B$10))","v":2},"significant figures",142.19999999999999,140,null,{"$f":"RANDBETWEEN(RANDBETWEEN(0,Worksheet!$B$7),Worksheet!$B$7)","v":3},{"$f":"RANDBETWEEN(RANDBETWEEN(0,Worksheet!$B$7),Worksheet!$B$7)","v":3}]
[10,"Round",{"$f":"IF(RAND()<Worksheet!$B$8/100,0,RANDBETWEEN(1,10^RANDBETWEEN(1,Worksheet!$B$6)))+RANDBETWEEN(1,10^Worksheet!$B$7)/(10^RANDBETWEEN(1,Worksheet!$B$7))","v":7693},"to",{"$f":"RANDBETWEEN(1,MIN(Worksheet!$B$7,Worksheet!$B$10))","v":3},"significant figures",7693,7690,null,40,"Round",{"$f":"IF(RAND()<Worksheet!$B$8/100,0,RANDBETWEEN(1,10^RANDBETWEEN(1,Worksheet!$B$6)))+RANDBETWEEN(1,10^Worksheet!$B$7)/(10^RANDBETWEEN(1,Worksheet!$B$7))","v":6092.5},"to",{"$f":"RANDBETWEEN(1,MIN(Worksheet!$B$7,Worksheet!$B$10))","v":3},"significant figures",6092.5,6090,null,{"$f":"RANDBETWEEN(RANDBETWEEN(0,Worksheet!$B$7),Worksheet!$B$7)","v":5},{"$f":"RANDBETWEEN(RANDBETWEEN(0,Worksheet!$B$7),Worksheet!$B$7)","v":5}]
[11,"Round",{"$f":"IF(RAND()<Worksheet!$B$8/100,0,RANDBETWEEN(1,10^RANDBETWEEN(1,Worksheet!$B$6)))+RANDBETWEEN(1,10^Worksheet!$B$7)/(10^RANDBETWEEN(1,Worksheet!$B$7))","v":787.61},"to",{"$f":"RANDBETWEEN(1,MIN(Worksheet!$B$7,Worksheet!$B$10))","v":1},"significant figure",787.6,800,null,41,"Round",{"$f":"IF(RAND()<Worksheet!$B$8/100,0,RANDBETWEEN(1,10^RANDBETWEEN(1,Worksheet!$B$6)))+RANDBETWEEN(1,10^Worksheet!$B$7)/(10^RANDBETWEEN(1,Worksheet!$B$7))","v":393.95819999999998},"to",{"$f":"RANDBETWEEN(1,MIN(Worksheet!$B$7,Worksheet!$B$10))","v":3},"significant figures",393.95800000000003,394,null,{"$f":"RANDBETWEEN(RANDBETWEEN(0,Worksheet!$B$7),Worksheet!$B$7)","v":3},{"$f":"RANDBETWEEN(RANDBETWEEN(0,Worksheet!$B$7),Worksheet!$B$7)","v":5}]
[12,"Round",{"$f":"IF(RAND()<Worksheet!$B$8/100,0,RANDBETWEEN(1,10^RANDBETWEEN(1,Worksheet!$B$6)))+RANDBETWEEN(1,10^Worksheet!$B$7)/(10^RANDBETWEEN(1,Worksheet!$B$7))","v":9.0940000000000012},"to",{"$f":"RANDBETWEEN(1,MIN(Worksheet!$B$7,Worksheet!$B$10))","v":3},"significant figures",9.0939999999999994,9.09,null,42,"Round",{"$f":"IF(RAND()<Worksheet!$B$8/100,0,RANDBETWEEN(1,10^RANDBETWEEN(1,Worksheet!$B$6)))+RANDBETWEEN(1,10^Worksheet!$B$7)/(10^RANDBETWEEN(1,Worksheet!$B$7))","v":278.47399999999999},"to",{"$f":"RANDBETWEEN(1,MIN(Worksheet!$B$7,Worksheet!$B$10))","v":2},"significant figures",278.47000000000003,280,null,{"$f":"RANDBETWEEN(RANDBETWEEN(0,Worksheet!$B$7),Worksheet!$B$7)","v":4},{"$f":"RANDBETWEEN(RANDBETWEEN(0,Worksheet!$B$7),Worksheet!$B$7)","v":3}]
[13,"Round",{"$f":"IF(RAND()<Worksheet!$B$8/100,0,RANDBETWEEN(1,10^RANDBETWEEN(1,Worksheet!$B$6)))+RANDBETWEEN(1,10^Worksheet!$B$7)/(10^RANDBETWEEN(1,Worksheet!$B$7))","v":47.631100000000004},"to",{"$f":"RANDBETWEEN(1,MIN(Worksheet!$B$7,Worksheet!$B$10))","v":2},"significant figures",47.63,48,null,43,"Round",{"$f":"IF(RAND()<Worksheet!$B$8/100,0,RANDBETWEEN(1,10^RANDBETWEEN(1,Worksheet!$B$6)))+RANDBETWEEN(1,10^Worksheet!$B$7)/(10^RANDBETWEEN(1,Worksheet!$B$7))","v":4764.5},"to",{"$f":"RANDBETWEEN(1,MIN(Worksheet!$B$7,Worksheet!$B$10))","v":1},"significant figure",4764.5,5000,null,{"$f":"RANDBETWEEN(RANDBETWEEN(0,Worksheet!$B$7),Worksheet!$B$7)","v":1},{"$f":"RANDBETWEEN(RANDBETWEEN(0,Worksheet!$B$7),Worksheet!$B$7)","v":3}]
[14,"Round",{"$f":"IF(RAND()<Worksheet!$B$8/100,0,RANDBETWEEN(1,10^RANDBETWEEN(1,Worksheet!$B$6)))+RANDBETWEEN(1,10^Worksheet!$B$7)/(10^RANDBETWEEN(1,Worksheet!$B$7))","v":902.21},"to",{"$f":"RANDBETWEEN(1,MIN(Worksheet!$B$7,Worksheet!$B$10))","v":3},"significant figures",902.21,902,null,44,"Round",{"$f":"IF(RAND()<Worksheet!$B$8/100,0,RANDBETWEEN(1,10^RANDBETWEEN(1,Worksheet!$B$6)))+RANDBETWEEN(1,10^Worksheet!$B$7)/(10^RANDBETWEEN(1,Worksheet!$B$7))","v":92.458399999999997},"to",{"$f":"RANDBETWEEN(1,MIN(Worksheet!$B$7,Worksheet!$B$10))","v":3},"significant figures",92.457999999999998,92.5,null,{"$f":"RANDBETWEEN(RANDBETWEEN(0,Worksheet!$B$7),Worksheet!$B$7)","v":3},{"$f":"RANDBETWEEN(RANDBETWEEN(0,Worksheet!$B$7),Worksheet!$B$7)","v":4}]
[15,"Round",{"$f":"IF(RAND()<Worksheet!$B$8/100,0,RANDBETWEEN(1,10^RANDBETWEEN(1,Worksheet!$B$6)))+RANDBETWEEN(1,10^Worksheet!$B$7)/(10^RANDBETWEEN(1,Worksheet!$B$7))","v":1997.6},"to",{"$f":"RANDBETWEEN(1,MIN(Worksheet!$B$7,Worksheet!$B$10))","v":1},"significant figure",1997.6,2000,null,45,"Round",{"$f":"IF(RAND()<Worksheet!$B$8/100,0,RANDBETWEEN(1,10^RANDBETWEEN(1,Worksheet!$B$6)))+RANDBETWEEN(1,10^Worksheet!$B$7)/(10^RANDBETWEEN(1,Worksheet!$B$7))","v":9330.5864500000007},"to",{"$f":"RANDBETWEEN(1,MIN(Worksheet!$B$7,Worksheet!$B$10))","v":2},"significant figures",9330.59,9300,null,{"$f":"RANDBETWEEN(RANDBETWEEN(0,Worksheet!$B$7),Worksheet!$B$7)","v":5},{"$f":"RANDBETWEEN(RANDBETWEEN(0,Worksheet!$B$7),Worksheet!$B$7)","v":5}]
[16,"Round",{"$f":"IF(RAND()<Worksheet!$B$8/100,0,RANDBETWEEN(1,10^RANDBETWEEN(1,Worksheet!$B$6)))+RANDBETWEEN(1,10^Worksheet!$B$7)/(10^RANDBETWEEN(1,Worksheet!$B$7))","v":187.42},"to",{"$f":"RANDBETWEEN(1,MIN(Worksheet!$B$7,Worksheet!$B$10))","v":1},"significant figure",187.4,200,null,46,"Round",{"$f":"IF(RAND()<Worksheet!$B$8/100,0,RANDBETWEEN(1,10^RANDBETWEEN(1,Worksheet!$B$6)))+RANDBETWEEN(1,10^Worksheet!$B$7)/(10^RANDBETWEEN(1,Worksheet!$B$7))","v":4399.8},"to",{"$f":"RANDBETWEEN(1,MIN(Worksheet!$B$7,Worksheet!$B$10))","v":3},"significant figures",4399.8,4400,null,{"$f":"RANDBETWEEN(RANDBETWEEN(0,Worksheet!$B$7),Worksheet!$B$7)","v":4},{"$f":"RANDBETWEEN(RANDBETWEEN(0,Worksheet!$B$7),Worksheet!$B$7)","v":5}]
[17,"Round",{"$f":"IF(RAND()<Worksheet!$B$8/100,0,RANDBETWEEN(1,10^RANDBETWEEN(1,Worksheet!$B$6)))+RANDBETWEEN(1,10^Worksheet!$B$7)/(10^RANDBETWEEN(1,Worksheet!$B$7))","v":758.57074},"to",{"$f":"RANDBETWEEN(1,MIN(Worksheet!$B$7,Worksheet!$B$10))","v":3},"significant figures",758.57100000000003,759,null,47,"Round",{"$f":"IF(RAND()<Worksheet!$B$8/100,0,RANDBETWEEN(1,10^RANDBETWEEN(1,Worksheet!$B$6)))+RANDBETWEEN(1,10^Worksheet!$B$7)/(10^RANDBETWEEN(1,Worksheet!$B$7))","v":4812.1000000000004},"to",{"$f":"RANDBETWEEN(1,MIN(Worksheet!$B$7,Worksheet!$B$10))","v":3},"significant figures",4812.1000000000004,4810,null,{"$f":"RANDBETWEEN(RANDBETWEEN(0,Worksheet!$B$7),Worksheet!$B$7)","v":5},{"$f":"RANDBETWEEN(RANDBETWEEN(0,Worksheet!$B$7),Worksheet!$B$7)","v":4}]
[18,"Round",{"$f":"IF(RAND()<Worksheet!$B$8/100,0,RANDBETWEEN(1,10^RANDBETWEEN(1,Worksheet!$B$6)))+RANDBETWEEN(1,10^Worksheet!$B$7)/(10^RANDBETWEEN(1,Worksheet!$B$7))","v":7.40543},"to",{"$f":"RANDBETWEEN(1,MIN(Worksheet!$B$7,Worksheet!$B$10))","v":1},"significant figure",7.4,7,null,48,"Round",{"$f":"IF(RAND()<Worksheet!$B$8/100,0,RANDBETWEEN(1,10^RANDBETWEEN(1,Worksheet!$B$6)))+RANDBETWEEN(1,10^Worksheet!$B$7)/(10^RANDBETWEEN(1,Worksheet!$B$7))","v":7597.59},"to",{"$f":"RANDBETWEEN(1,MIN(Worksheet!$B$7,Worksheet!$B$10))","v":1},"significant figure",7597.6,8000,null,{"$f":"RANDBETWEEN(RANDBETWEEN(0,Worksheet!$B$7),Worksheet!$B$7)","v":5},{"$f":"RANDBETWEEN(RANDBETWEEN(0,Worksheet!$B$7),Worksheet!$B$7)","v":2}]
[19,"Round",{"$f":"IF(RAND()<Worksheet!$B$8/100,0,RANDBETWEEN(1,10^RANDBETWEEN(1,Worksheet!$B$6)))+RANDBETWEEN(1,10^Worksheet!$B$7)/(10^RANDBETWEEN(1,Worksheet!$B$7))","v":3033.8},"to",{"$f":"RANDBETWEEN(1,MIN(Worksheet!$B$7,Worksheet!$B$10))","v":2},"significant figures",3033.8,3000,null,49,"Round",{"$f":"IF(RAND()<Worksheet!$B$8/100,0,RANDBETWEEN(1,10^RANDBETWEEN(1,Worksheet!$B$6)))+RANDBETWEEN(1,10^Worksheet!$B$7)/(10^RANDBETWEEN(1,Worksheet!$B$7))","v":287.47000000000003},"to",{"$f":"RANDBETWEEN(1,MIN(Worksheet!$B$7,Worksheet!$B$10))","v":1},"significant figure",287.5,300,null,{"$f":"RANDBETWEEN(RANDBETWEEN(0,Worksheet!$B$7),Worksheet!$B$7)","v":4},{"$f":"RANDBETWEEN(RANDBETWEEN(0,Worksheet!$B$7),Worksheet!$B$7)","v":3}]
[20,"Round",{"$f":"IF(RAND()<Worksheet!$B$8/100,0,RANDBETWEEN(1,10^RANDBETWEEN(1,Worksheet!$B$6)))+RANDBETWEEN(1,10^Worksheet!$B$7)/(10^RANDBETWEEN(1,Worksheet!$B$7))","v":71.788399999999996},"to",{"$f":"RANDBETWEEN(1,MIN(Worksheet!$B$7,Worksheet!$B$10))","v":2},"significant figures",71.790000000000006,72,null,50,"Round",{"$f":"IF(RAND()<Worksheet!$B$8/100,0,RANDBETWEEN(1,10^RANDBETWEEN(1,Worksheet!$B$6)))+RANDBETWEEN(1,10^Worksheet!$B$7)/(10^RANDBETWEEN(1,Worksheet!$B$7))","v":4090.6},"to",{"$f":"RANDBETWEEN(1,MIN(Worksheet!$B$7,Worksheet!$B$10))","v":1},"significant figure",4090.6,4000,null,{"$f":"RANDBETWEEN(RANDBETWEEN(0,Worksheet!$B$7),Worksheet!$B$7)","v":5},{"$f":"RANDBETWEEN(RANDBETWEEN(0,Worksheet!$B$7),Worksheet!$B$7)","v":5}]
[21,"Round",{"$f":"IF(RAND()<Worksheet!$B$8/100,0,RANDBETWEEN(1,10^RANDBETWEEN(1,Worksheet!$B$6)))+RANDBETWEEN(1,10^Worksheet!$B$7)/(10^RANDBETWEEN(1,Worksheet!$B$7))","v":2694.2},"to",{"$f":"RANDBETWEEN(1,MIN(Worksheet!$B$7,Worksheet!$B$10))","v":3},"significant figures",2694.2,2690,null,51,"Round",{"$f":"IF(RAND()<Worksheet!$B$8/100,0,RANDBETWEEN(1,10^RANDBETWEEN(1,Worksheet!$B$6)))+RANDBETWEEN(1,10^Worksheet!$B$7)/(10^RANDBETWEEN(1,Worksheet!$B$7))","v":708.91800000000001},"to",{"$f":"RANDBETWEEN(1,MIN(Worksheet!$B$7,Worksheet!$B$10))","v":2},"significant figures",708.92,710,null,{"$f":"RANDBETWEEN(RANDBETWEEN(0,Worksheet!$B$7),Worksheet!$B$7)","v":5},{"$f":"RANDBETWEEN(RANDBETWEEN(0,Worksheet!$B$7),Worksheet!$B$7)","v":5}]
[22,"Round",{"$f":"IF(RAND()<Worksheet!$B$8/100,0,RANDBETWEEN(1,10^RANDBETWEEN(1,Worksheet!$B$6)))+RANDBETWEEN(1,10^Worksheet!$B$7)/(10^RANDBETWEEN(1,Worksheet!$B$7))","v":258.54660000000001},"to",{"$f":"RANDBETWEEN(1,MIN(Worksheet!$B$7,Worksheet!$B$10))","v":2},"significant figures",258.55,260,null,52,"Round",{"$f":"IF(RAND()<Worksheet!$B$8/100,0,RANDBETWEEN(1,10^RANDBETWEEN(1,Worksheet!$B$6)))+RANDBETWEEN(1,10^Worksheet!$B$7)/(10^RANDBETWEEN(1,Worksheet!$B$7))","v":5337.3},"to",{"$f":"RANDBETWEEN(1,MIN(Worksheet!$B$7,Worksheet!$B$10))","v":1},"significant figure",5337.3,5000,null,{"$f":"RANDBETWEEN(RANDBETWEEN(0,Worksheet!$B$7),Worksheet!$B$7)","v":5},{"$f":"RANDBETWEEN(RANDBETWEEN(0,Worksheet!$B$7),Worksheet!$B$7)","v":2}]
[23,"Round",{"$f":"IF(RAND()<Worksheet!$B$8/100,0,RANDBETWEEN(1,10^RANDBETWEEN(1,Worksheet!$B$6)))+RANDBETWEEN(1,10^Worksheet!$B$7)/(10^RANDBETWEEN(1,Worksheet!$B$7))","v":3379.6},"to",{"$f":"RANDBETWEEN(1,MIN(Worksheet!$B$7,Worksheet!$B$10))","v":2},"significant figures",3379.6,3400,null,53,"Round",{"$f":"IF(RAND()<Worksheet!$B$8/100,0,RANDBETWEEN(1,10^RANDBETWEEN(1,Worksheet!$B$6)))+RANDBETWEEN(1,10^Worksheet!$B$7)/(10^RANDBETWEEN(1,Worksheet!$B$7))","v":269.43},"to",{"$f":"RANDBETWEEN(1,MIN(Worksheet!$B$7,Worksheet!$B$10))","v":3},"significant figures",269.43,269,null,{"$f":"RANDBETWEEN(RANDBETWEEN(0,Worksheet!$B$7),Worksheet!$B$7)","v":5},{"$f":"RANDBETWEEN(RANDBETWEEN(0,Worksheet!$B$7),Worksheet!$B$7)","v":3}]
[24,"Round",{"$f":"IF(RAND()<Worksheet!$B$8/100,0,RANDBETWEEN(1,10^RANDBETWEEN(1,Worksheet!$B$6)))+RANDBETWEEN(1,10^Worksheet!$B$7)/(10^RANDBETWEEN(1,Worksheet!$B$7))","v":3.7921899999999997},"to",{"$f":"RANDBETWEEN(1,MIN(Worksheet!$B$7,Worksheet!$B$10))","v":3},"significant figures",3.7919999999999998,3.79,null,54,"Round",{"$f":"IF(RAND()<Worksheet!$B$8/100,0,RANDBETWEEN(1,10^RANDBETWEEN(1,Worksheet!$B$6)))+RANDBETWEEN(1,10^Worksheet!$B$7)/(10^RANDBETWEEN(1,Worksheet!$B$7))","v":826.29},"to",{"$f":"RANDBETWEEN(1,MIN(Worksheet!$B$7,Worksheet!$B$10))","v":1},"significant figure",826.3,800,null,{"$f":"RANDBETWEEN(RANDBETWEEN(0,Worksheet!$B$7),Worksheet!$B$7)","v":5},{"$f":"RANDBETWEEN(RANDBETWEEN(0,Worksheet!$B$7),Worksheet!$B$7)","v":5}]
[25,"Round",{"$f":"IF(RAND()<Worksheet!$B$8/100,0,RANDBETWEEN(1,10^RANDBETWEEN(1,Worksheet!$B$6)))+RANDBETWEEN(1,10^Worksheet!$B$7)/(10^RANDBETWEEN(1,Worksheet!$B$7))","v":7009.29},"to",{"$f":"RANDBETWEEN(1,MIN(Worksheet!$B$7,Worksheet!$B$10))","v":3},"significant figures",7009.29,7010,null,55,"Round",{"$f":"IF(RAND()<Worksheet!$B$8/100,0,RANDBETWEEN(1,10^RANDBETWEEN(1,Worksheet!$B$6)))+RANDBETWEEN(1,10^Worksheet!$B$7)/(10^RANDBETWEEN(1,Worksheet!$B$7))","v":17.824999999999999},"to",{"$f":"RANDBETWEEN(1,MIN(Worksheet!$B$7,Worksheet!$B$10))","v":3},"significant figures",17.824999999999999,17.8,null,{"$f":"RANDBETWEEN(RANDBETWEEN(0,Worksheet!$B$7),Worksheet!$B$7)","v":5},{"$f":"RANDBETWEEN(RANDBETWEEN(0,Worksheet!$B$7),Worksheet!$B$7)","v":4}]
[26,"Round",{"$f":"IF(RAND()<Worksheet!$B$8/100,0,RANDBETWEEN(1,10^RANDBETWEEN(1,Worksheet!$B$6)))+RANDBETWEEN(1,10^Worksheet!$B$7)/(10^RANDBETWEEN(1,Worksheet!$B$7))","v":8060.8212999999996},"to",{"$f":"RANDBETWEEN(1,MIN(Worksheet!$B$7,Worksheet!$B$10))","v":2},"significant figures",8060.82,8100,null,56,"Round",{"$f":"IF(RAND()<Worksheet!$B$8/100,0,RANDBETWEEN(1,10^RANDBETWEEN(1,Worksheet!$B$6)))+RANDBETWEEN(1,10^Worksheet!$B$7)/(10^RANDBETWEEN(1,Worksheet!$B$7))","v":92.257000000000005},"to",{"$f":"RANDBETWEEN(1,MIN(Worksheet!$B$7,Worksheet!$B$10))","v":3},"significant figures",92.257000000000005,92.3,null,{"$f":"RANDBETWEEN(RANDBETWEEN(0,Worksheet!$B$7),Worksheet!$B$7)","v":5},{"$f":"RANDBETWEEN(RANDBETWEEN(0,Worksheet!$B$7),Worksheet!$B$7)","v":5}]
[27,"Round",{"$f":"IF(RAND()<Worksheet!$B$8/100,0,RANDBETWEEN(1,10^RANDBETWEEN(1,Worksheet!$B$6)))+RANDBETWEEN(1,10^Worksheet!$B$7)/(10^RANDBETWEEN(1,Worksheet!$B$7))","v":7402.8370000000004},"to",{"$f":"RANDBETWEEN(1,MIN(Worksheet!$B$7,Worksheet!$B$10))","v":3},"significant figures",7402.8370000000004,7400,null,57,"Round",{"$f":"IF(RAND()<Worksheet!$B$8/100,0,RANDBETWEEN(1,10^RANDBETWEEN(1,Worksheet!$B$6)))+RANDBETWEEN(1,10^Worksheet!$B$7)/(10^RANDBETWEEN(1,Worksheet!$B$7))","v":5.3254999999999999},"to",{"$f":"RANDBETWEEN(1,MIN(Worksheet!$B$7,Worksheet!$B$10))","v":1},"significant figure",5.3,5,null,{"$f":"RANDBETWEEN(RANDBETWEEN(0,Worksheet!$B$7),Worksheet!$B$7)","v":1},{"$f":"RANDBETWEEN(RANDBETWEEN(0,Worksheet!$B$7),Worksheet!$B$7)","v":5}]
[28,"Round",{"$f":"IF(RAND()<Worksheet!$B$8/100,0,RANDBETWEEN(1,10^RANDBETWEEN(1,Worksheet!$B$6)))+RANDBETWEEN(1,10^Worksheet!$B$7)/(10^RANDBETWEEN(1,Worksheet!$B$7))","v":246.4},"to",{"$f":"RANDBETWEEN(1,MIN(Worksheet!$B$7,Worksheet!$B$10))","v":2},"significant figures",246.4,250,null,58,"Round",{"$f":"IF(RAND()<Worksheet!$B$8/100,0,RANDBETWEEN(1,10^RANDBETWEEN(1,Worksheet!$B$6)))+RANDBETWEEN(1,10^Worksheet!$B$7)/(10^RANDBETWEEN(1,Worksheet!$B$7))","v":53.752000000000002},"to",{"$f":"RANDBETWEEN(1,MIN(Worksheet!$B$7,Worksheet!$B$10))","v":3},"significant figures",53.752000000000002,53.8,null,{"$f":"RANDBETWEEN(RANDBETWEEN(0,Worksheet!$B$7),Worksheet!$B$7)","v":3},{"$f":"RANDBETWEEN(RANDBETWEEN(0,Worksheet!$B$7),Worksheet!$B$7)","v":5}]
[29,"Round",{"$f":"IF(RAND()<Worksheet!$B$8/100,0,RANDBETWEEN(1,10^RANDBETWEEN(1,Worksheet!$B$6)))+RANDBETWEEN(1,10^Worksheet!$B$7)/(10^RANDBETWEEN(1,Worksheet!$B$7))","v":21.364000000000001},"to",{"$f":"RANDBETWEEN(1,MIN(Worksheet!$B$7,Worksheet!$B$10))","v":2},"significant figures",21.36,21,null,59,"Round",{"$f":"IF(RAND()<Worksheet!$B$8/100,0,RANDBETWEEN(1,10^RANDBETWEEN(1,Worksheet!$B$6)))+RANDBETWEEN(1,10^Worksheet!$B$7)/(10^RANDBETWEEN(1,Worksheet!$B$7))","v":33.668999999999997},"to",{"$f":"RANDBETWEEN(1,MIN(Worksheet!$B$7,Worksheet!$B$10))","v":1},"significant figure",33.700000000000003,30,null,{"$f":"RANDBETWEEN(RANDBETWEEN(0,Worksheet!$B$7),Worksheet!$B$7)","v":5},{"$f":"RANDBETWEEN(RANDBETWEEN(0,Worksheet!$B$7),Worksheet!$B$7)","v":4}]
[30,"Round",{"$f":"IF(RAND()<Worksheet!$B$8/100,0,RANDBETWEEN(1,10^RANDBETWEEN(1,Worksheet!$B$6)))+RANDBETWEEN(1,10^Worksheet!$B$7)/(10^RANDBETWEEN(1,Worksheet!$B$7))","v":8819.1},"to",{"$f":"RANDBETWEEN(1,MIN(Worksheet!$B$7,Worksheet!$B$10))","v":1},"significant figure",8819.1,9000,null,60,"Round",{"$f":"IF(RAND()<Worksheet!$B$8/100,0,RANDBETWEEN(1,10^RANDBETWEEN(1,Worksheet!$B$6)))+RANDBETWEEN(1,10^Worksheet!$B$7)/(10^RANDBETWEEN(1,Worksheet!$B$7))","v":8949.6},"to",{"$f":"RANDBETWEEN(1,MIN(Worksheet!$B$7,Worksheet!$B$10))","v":3},"significant figures",8949.6,8950,null,{"$f":"RANDBETWEEN(RANDBETWEEN(0,Worksheet!$B$7),Worksheet!$B$7)","v":4},{"$f":"RANDBETWEEN(RANDBETWEEN(0,Worksheet!$B$7),Worksheet!$B$7)","v":5}]